[Event "*** Titled Tuesday 3|2 Blitz"]
[Site "Chess.com"]
[Date "2017.03.07"]
[Round "9"]
[White "StellarChessPro"]
[Black "NTBT_DHS"]
[Result "1-0"]
[WhiteElo "2353"]
[BlackElo "2532"]
[TimeControl "180+2"]
[EndTime "15:09:18 PST"]
[Termination "StellarChessPro won by checkmate"]

1. d4 {[%clk 0:03:01.9]} 1... Nf6 {[%clk 0:03:00.9]} 2. Bg5 {[%clk 0:03:02.3]}
2... c5 {[%clk 0:03:01.5]} 3. Bxf6 {[%clk 0:03:03.5]} 3... gxf6 {[%clk
0:03:02.5]} 4. d5 {[%clk 0:03:05]} 4... f5 {[%clk 0:03:03.6]} 5. e3 {[%clk
0:03:05.7]} 5... Bg7 {[%clk 0:03:04.9]} 6. c3 {[%clk 0:03:06.7]} 6... d6 {[%clk
0:02:59.2]} 7. Ne2 {[%clk 0:03:07.9]} 7... b5 {[%clk 0:02:57.7]} 8. Nf4 {[%clk
0:03:08.8]} 8... b4 {[%clk 0:02:57.7]} 9. Qc2 {[%clk 0:03:03.7]} 9... a5 {[%clk
0:02:56.7]} 10. Bb5+ {[%clk 0:03:03.5]} 10... Bd7 {[%clk 0:02:56.2]} 11. Bxd7+
{[%clk 0:02:57.2]} 11... Qxd7 {[%clk 0:02:57.2]} 12. O-O {[%clk 0:02:54.6]}
12... Rg8 {[%clk 0:02:53.9]} 13. Nd2 {[%clk 0:02:50.3]} 13... Na6 {[%clk
0:02:53.3]} 14. Nc4 {[%clk 0:02:47.9]} 14... Qb5 {[%clk 0:02:42.7]} 15. Qe2
{[%clk 0:02:48.8]} 15... Kf8 {[%clk 0:02:34.7]} 16. cxb4 {[%clk 0:02:24.1]}
16... cxb4 {[%clk 0:02:25.6]} 17. Rac1 {[%clk 0:02:21]} 17... Nc5 {[%clk
0:02:17.3]} 18. Qh5 {[%clk 0:02:22]} 18... Be5 {[%clk 0:01:27.7]} 19. Nxe5
{[%clk 0:01:51.6]} 19... dxe5 {[%clk 0:01:25.5]} 20. Qh6+ {[%clk 0:01:26.7]}
20... Ke8 {[%clk 0:01:24.4]} 21. Qxh7 {[%clk 0:01:20.7]} 21... Rf8 {[%clk
0:01:24.2]} 22. Nh5 {[%clk 0:01:19]} 22... Nd3 {[%clk 0:01:14.3]} 23. Rc7 {[%clk
0:01:15.3]} 23... Kd8 {[%clk 0:01:10.4]} 24. Rc2 {[%clk 0:00:59.5]} 24... Qd7
{[%clk 0:00:49.1]} 25. Ng7 {[%clk 0:00:53.4]} 25... e6 {[%clk 0:00:30]} 26. dxe6
{[%clk 0:00:46.6]} 26... fxe6 {[%clk 0:00:30.9]} 27. Rd1 {[%clk 0:00:47]} 27...
e4 {[%clk 0:00:32]} 28. Qh6 {[%clk 0:00:45.7]} 28... Ke7 {[%clk 0:00:24.4]} 29.
Nh5 {[%clk 0:00:40.8]} 29... Rac8 {[%clk 0:00:21.4]} 30. Qg7+ {[%clk 0:00:40.5]}
30... Kd6 {[%clk 0:00:20.8]} 31. Qd4+ {[%clk 0:00:35.2]} 31... Ke7 {[%clk
0:00:22.1]} 32. Qg7+ {[%clk 0:00:32.1]} 32... Rf7 {[%clk 0:00:23.3]} 33. Qg5+
{[%clk 0:00:32.9]} 33... Kd6 {[%clk 0:00:24.3]} 34. Rxc8 {[%clk 0:00:33.4]}
34... Qxc8 {[%clk 0:00:25.1]} 35. Qg3+ {[%clk 0:00:30]} 35... Ke7 {[%clk
0:00:24.1]} 36. h3 {[%clk 0:00:30.8]} 36... Qc2 {[%clk 0:00:24.5]} 37. Qh4+
{[%clk 0:00:32.2]} 37... Kd7 {[%clk 0:00:21.6]} 38. Rf1 {[%clk 0:00:32.7]} 38...
Qxb2 {[%clk 0:00:22.3]} 39. Nf4 {[%clk 0:00:33.8]} 39... Qxa2 {[%clk 0:00:18.8]}
40. Nxd3 {[%clk 0:00:34.3]} 40... exd3 {[%clk 0:00:19.3]} 41. Qd4+ {[%clk
0:00:34.7]} 41... Qd5 {[%clk 0:00:20.9]} 42. Qa7+ {[%clk 0:00:36.3]} 42... Ke8
{[%clk 0:00:22.3]} 43. Qb8+ {[%clk 0:00:37.3]} 43... Ke7 {[%clk 0:00:23.6]} 44.
Rc1 {[%clk 0:00:37.2]} 44... d2 {[%clk 0:00:21.4]} 45. Rc7+ {[%clk 0:00:38.2]}
45... Kf6 {[%clk 0:00:22.9]} 46. Qh8+ {[%clk 0:00:39]} 46... Kg5 {[%clk
0:00:19]} 47. f4+ {[%clk 0:00:35.2]} 47... Kg6 {[%clk 0:00:18.4]} 48. Qg8+
{[%clk 0:00:35.8]} 48... Kh6 {[%clk 0:00:19.9]} 49. Rxf7 {[%clk 0:00:32]} 49...
d1=Q+ {[%clk 0:00:17.7]} 50. Kh2 {[%clk 0:00:33.2]} 50... Qxg2+ {[%clk 0:00:15]}
51. Qxg2 {[%clk 0:00:33]} 51... Qh5 {[%clk 0:00:13.3]} 52. Qg7# {[%clk
0:00:33.3]} 1-0

[Event "*** Titled Tuesday 3|2 Blitz"]
[Site "Chess.com"]
[Date "2017.03.07"]
[Round "9"]
[White "MattyDPerrine"]
[Black "HaryKane"]
[Result "1-0"]
[WhiteElo "2231"]
[BlackElo "2287"]
[TimeControl "180+2"]
[EndTime "15:09:27 PST"]
[Termination "MattyDPerrine won by resignation"]

1. Nf3 {[%clk 0:03:02]} 1... Nf6 {[%clk 0:02:55.5]} 2. g3 {[%clk 0:02:58.8]}
2... d5 {[%clk 0:02:55.1]} 3. Bg2 {[%clk 0:02:59.3]} 3... Bg4 {[%clk 0:02:55.9]}
4. Ne5 {[%clk 0:02:59.4]} 4... Nc6 {[%clk 0:02:55.2]} 5. Nxg4 {[%clk 0:02:59.3]}
5... Nxg4 {[%clk 0:02:55.2]} 6. c4 {[%clk 0:02:56.8]} 6... dxc4 {[%clk
0:02:45.5]} 7. Qa4 {[%clk 0:02:53.4]} 7... Qd7 {[%clk 0:02:41.1]} 8. Qxc4 {[%clk
0:02:42.3]} 8... Nge5 {[%clk 0:02:35.8]} 9. Qa4 {[%clk 0:02:27.9]} 9... Nd4
{[%clk 0:02:04.7]} 10. Qxd7+ {[%clk 0:02:08]} 10... Kxd7 {[%clk 0:02:01.6]} 11.
Kd1 {[%clk 0:02:01]} 11... Ng4 {[%clk 0:01:47.8]} 12. Bh3 {[%clk 0:01:48.9]}
12... f5 {[%clk 0:01:49.7]} 13. Bxg4 {[%clk 0:01:46.8]} 13... fxg4 {[%clk
0:01:50.6]} 14. d3 {[%clk 0:01:47.9]} 14... h5 {[%clk 0:01:44.1]} 15. h4 {[%clk
0:01:46.3]} 15... g6 {[%clk 0:01:40.2]} 16. Nc3 {[%clk 0:01:40.7]} 16... Bg7
{[%clk 0:01:40.7]} 17. Rb1 {[%clk 0:01:29.7]} 17... Rhf8 {[%clk 0:01:40]} 18.
Ne4 {[%clk 0:01:30.1]} 18... a5 {[%clk 0:01:35.8]} 19. Be3 {[%clk 0:01:28]}
19... b6 {[%clk 0:01:29.3]} 20. Bxd4 {[%clk 0:01:21.2]} 20... Bxd4 {[%clk
0:01:29.4]} 21. e3 {[%clk 0:01:23.1]} 21... Bg7 {[%clk 0:01:28]} 22. Ke2 {[%clk
0:01:23]} 22... Rf5 {[%clk 0:01:24.7]} 23. Rhf1 {[%clk 0:01:17.8]} 23... Rb5
{[%clk 0:01:22.3]} 24. d4 {[%clk 0:01:11.1]} 24... e5 {[%clk 0:01:22]} 25. Nc3
{[%clk 0:01:11.6]} 25... Rb4 {[%clk 0:01:18.9]} 26. Rfc1 {[%clk 0:00:33.6]}
26... exd4 {[%clk 0:00:45.1]} 27. Nd5 {[%clk 0:00:33.4]} 27... Be5 {[%clk
0:00:46]} 28. Nxb4 {[%clk 0:00:28]} 28... axb4 {[%clk 0:00:47.9]} 29. exd4
{[%clk 0:00:21.2]} 29... Bxd4 {[%clk 0:00:49.8]} 30. Rd1 {[%clk 0:00:21.5]}
30... c5 {[%clk 0:00:50.1]} 31. a3 {[%clk 0:00:20.5]} 31... bxa3 {[%clk
0:00:51.2]} 32. bxa3 {[%clk 0:00:22]} 32... Kc6 {[%clk 0:00:43.4]} 33. Rd3
{[%clk 0:00:19.8]} 33... b5 {[%clk 0:00:41.6]} 34. Rdb3 {[%clk 0:00:19.1]} 34...
Rb8 {[%clk 0:00:39]} 35. f3 {[%clk 0:00:15.4]} 35... c4 {[%clk 0:00:38.7]} 36.
Rb4 {[%clk 0:00:13.8]} 36... Bc5 {[%clk 0:00:38.8]} 37. Rxc4 {[%clk 0:00:12.3]}
37... Re8+ {[%clk 0:00:35.3]} 38. Re4 {[%clk 0:00:13.5]} 38... gxf3+ {[%clk
0:00:36]} 39. Kxf3 {[%clk 0:00:15.4]} 39... Rf8+ {[%clk 0:00:36.9]} 40. Rf4
{[%clk 0:00:17]} 40... Rd8 {[%clk 0:00:33.8]} 41. Rf6+ {[%clk 0:00:18.2]} 41...
Kc7 {[%clk 0:00:34.1]} 42. Rc1 {[%clk 0:00:19]} 42... Rd3+ {[%clk 0:00:33.9]}
43. Kg2 {[%clk 0:00:19.9]} 43... Rd5 {[%clk 0:00:32.6]} 44. Rxg6 {[%clk
0:00:21.3]} 44... Kd7 {[%clk 0:00:33]} 45. Rg5 {[%clk 0:00:22.4]} 45... Rd2+
{[%clk 0:00:33.7]} 46. Kh3 {[%clk 0:00:23.6]} 46... Bd6 {[%clk 0:00:35.1]} 47.
Rxb5 {[%clk 0:00:22.8]} 47... Rd3 {[%clk 0:00:36.2]} 48. Rg1 {[%clk 0:00:21.4]}
48... Rxa3 {[%clk 0:00:36.5]} 49. Rxh5 {[%clk 0:00:22.6]} 49... Ke6 {[%clk
0:00:36.7]} 50. Re1+ {[%clk 0:00:22.3]} 50... Kf7 {[%clk 0:00:36.6]} 51. Rg5
{[%clk 0:00:23.6]} 51... Kf6 {[%clk 0:00:36.5]} 52. Rc1 {[%clk 0:00:22.3]} 52...
Bf4 {[%clk 0:00:32.6]} 53. Rf1 {[%clk 0:00:21.4]} 1-0

[Event "*** Titled Tuesday 3|2 Blitz"]
[Site "Chess.com"]
[Date "2017.03.07"]
[Round "9"]
[White "rasmussvane"]
[Black "Ginger_GM"]
[Result "0-1"]
[WhiteElo "2477"]
[BlackElo "2504"]
[TimeControl "180+2"]
[EndTime "15:09:32 PST"]
[Termination "Ginger_GM won by resignation"]

1. Nf3 {[%clk 0:03:02]} 1... f5 {[%clk 0:02:59.4]} 2. d3 {[%clk 0:03:00.9]} 2...
d6 {[%clk 0:02:59.4]} 3. e4 {[%clk 0:03:01.6]} 3... e5 {[%clk 0:02:58.8]} 4. Nc3
{[%clk 0:03:00.1]} 4... c5 {[%clk 0:02:59]} 5. exf5 {[%clk 0:02:27.6]} 5... Bxf5
{[%clk 0:02:57.9]} 6. g3 {[%clk 0:02:26.3]} 6... Be7 {[%clk 0:02:56.7]} 7. Bg2
{[%clk 0:02:26.8]} 7... Nc6 {[%clk 0:02:56.6]} 8. Nd5 {[%clk 0:02:00.7]} 8...
Nf6 {[%clk 0:02:48.2]} 9. Nh4 {[%clk 0:01:57.7]} 9... Be6 {[%clk 0:02:47.9]} 10.
Nxe7 {[%clk 0:01:44.9]} 10... Qxe7 {[%clk 0:02:43.6]} 11. O-O {[%clk 0:01:44.2]}
11... O-O {[%clk 0:02:37.3]} 12. Bg5 {[%clk 0:01:35.8]} 12... Qd7 {[%clk
0:02:24]} 13. Qd2 {[%clk 0:01:29.8]} 13... Bh3 {[%clk 0:02:20.8]} 14. f4 {[%clk
0:01:17]} 14... Bxg2 {[%clk 0:02:01.6]} 15. Qxg2 {[%clk 0:01:17.7]} 15... Ng4
{[%clk 0:01:59.1]} 16. f5 {[%clk 0:01:11]} 16... Nd4 {[%clk 0:01:48.2]} 17. h3
{[%clk 0:01:05.7]} 17... Nf6 {[%clk 0:01:44.2]} 18. c3 {[%clk 0:01:05.1]} 18...
Nc6 {[%clk 0:01:38.6]} 19. g4 {[%clk 0:01:06.2]} 19... d5 {[%clk 0:01:35.6]} 20.
Rae1 {[%clk 0:01:01.2]} 20... Rae8 {[%clk 0:01:35]} 21. Kh1 {[%clk 0:00:56.4]}
21... a5 {[%clk 0:01:31.5]} 22. Bxf6 {[%clk 0:00:50.3]} 22... Rxf6 {[%clk
0:01:29.5]} 23. g5 {[%clk 0:00:51.7]} 23... Rff8 {[%clk 0:01:30.1]} 24. f6
{[%clk 0:00:52.2]} 24... g6 {[%clk 0:01:29.9]} 25. Nf3 {[%clk 0:00:50.8]} 25...
e4 {[%clk 0:01:21.1]} 26. dxe4 {[%clk 0:00:49.8]} 26... dxe4 {[%clk 0:01:22.1]}
27. Nh2 {[%clk 0:00:48.6]} 27... Qd5 {[%clk 0:01:09]} 28. Ng4 {[%clk 0:00:38.5]}
28... Qxg5 {[%clk 0:00:55.9]} 29. f7+ {[%clk 0:00:33.1]} 29... Rxf7 {[%clk
0:00:54.7]} 30. Nf6+ {[%clk 0:00:26.2]} 30... Qxf6 {[%clk 0:00:55.1]} 31. Rxf6
{[%clk 0:00:27.8]} 31... Rxf6 {[%clk 0:00:56.1]} 32. Rxe4 {[%clk 0:00:29.4]}
32... Ref8 {[%clk 0:00:57.2]} 33. Re2 {[%clk 0:00:30.6]} 33... Kg7 {[%clk
0:00:52]} 34. Qd5 {[%clk 0:00:24]} 34... Rf5 {[%clk 0:00:35.7]} 35. Qd6 {[%clk
0:00:23.5]} 35... R8f7 {[%clk 0:00:29.1]} 36. Kg2 {[%clk 0:00:22]} 36... a4
{[%clk 0:00:29.5]} 37. b3 {[%clk 0:00:21.2]} 37... a3 {[%clk 0:00:28.9]} 38. b4
{[%clk 0:00:21.5]} 38... cxb4 {[%clk 0:00:29.1]} 39. cxb4 {[%clk 0:00:22.8]}
39... Rg5+ {[%clk 0:00:26]} 40. Kh2 {[%clk 0:00:23.6]} 40... Rgf5 {[%clk
0:00:24.5]} 41. Kg2 {[%clk 0:00:19.3]} 41... h5 {[%clk 0:00:22.1]} 42. Qd3
{[%clk 0:00:18.1]} 42... Kh7 {[%clk 0:00:15.5]} 43. Qxa3 {[%clk 0:00:18.7]}
43... Nd4 {[%clk 0:00:15.9]} 44. Rd2 {[%clk 0:00:18.1]} 44... Rg5+ {[%clk
0:00:17]} 45. Kh1 {[%clk 0:00:14.1]} 45... Rf1+ {[%clk 0:00:16.3]} 46. Kh2
{[%clk 0:00:11.8]} 46... Nf3+ {[%clk 0:00:15.4]} 0-1

[Event "*** Titled Tuesday 3|2 Blitz"]
[Site "Chess.com"]
[Date "2017.03.07"]
[Round "9"]
[White "ChristopherYoo"]
[Black "oggy1984"]
[Result "0-1"]
[WhiteElo "2156"]
[BlackElo "2358"]
[TimeControl "180+2"]
[EndTime "15:09:41 PST"]
[Termination "oggy1984 won by resignation"]

1. e4 {[%clk 0:03:02]} 1... e5 {[%clk 0:03:00.3]} 2. Nf3 {[%clk 0:03:02.6]} 2...
Nc6 {[%clk 0:03:01.1]} 3. Bb5 {[%clk 0:03:03.4]} 3... a6 {[%clk 0:03:02]} 4. Ba4
{[%clk 0:03:03.9]} 4... Nf6 {[%clk 0:03:02.9]} 5. O-O {[%clk 0:03:04.3]} 5...
Be7 {[%clk 0:03:02.9]} 6. Re1 {[%clk 0:03:04.6]} 6... b5 {[%clk 0:03:03.2]} 7.
Bb3 {[%clk 0:03:05.1]} 7... d6 {[%clk 0:03:04.1]} 8. c3 {[%clk 0:03:05.1]} 8...
Na5 {[%clk 0:03:04.8]} 9. Bc2 {[%clk 0:03:05.8]} 9... c5 {[%clk 0:03:05.7]} 10.
d4 {[%clk 0:03:05.4]} 10... Qc7 {[%clk 0:03:04.2]} 11. Nbd2 {[%clk 0:03:04.4]}
11... cxd4 {[%clk 0:03:02]} 12. cxd4 {[%clk 0:03:04.9]} 12... Nc6 {[%clk
0:03:02.7]} 13. Nb3 {[%clk 0:02:53.2]} 13... a5 {[%clk 0:03:02.2]} 14. Be3
{[%clk 0:02:12.7]} 14... a4 {[%clk 0:02:55.5]} 15. Nbd2 {[%clk 0:02:12.7]} 15...
Bg4 {[%clk 0:02:24.2]} 16. d5 {[%clk 0:01:58.7]} 16... Nb4 {[%clk 0:02:01.7]}
17. Bb1 {[%clk 0:01:40.8]} 17... Rc8 {[%clk 0:01:49.7]} 18. a3 {[%clk
0:01:06.2]} 18... Nc2 {[%clk 0:01:30.1]} 19. Bxc2 {[%clk 0:01:05.8]} 19... Qxc2
{[%clk 0:01:31.8]} 20. Qxc2 {[%clk 0:00:51.1]} 20... Rxc2 {[%clk 0:01:33.7]} 21.
Rab1 {[%clk 0:00:52.3]} 21... O-O {[%clk 0:01:00]} 22. Rec1 {[%clk 0:00:50.6]}
22... Rfc8 {[%clk 0:00:59.3]} 23. Rxc2 {[%clk 0:00:50.8]} 23... Rxc2 {[%clk
0:01:01.2]} 24. Ne1 {[%clk 0:00:50.5]} 24... Rc8 {[%clk 0:00:58.4]} 25. f3
{[%clk 0:00:45.7]} 25... Bd7 {[%clk 0:00:58]} 26. Nd3 {[%clk 0:00:39.5]} 26...
Ne8 {[%clk 0:00:47.3]} 27. Nb4 {[%clk 0:00:37.9]} 27... Bd8 {[%clk 0:00:42.2]}
28. Kf2 {[%clk 0:00:21.1]} 28... Ba5 {[%clk 0:00:38]} 29. Nd3 {[%clk 0:00:18.2]}
29... Rc2 {[%clk 0:00:34.7]} 30. Ke2 {[%clk 0:00:17.9]} 30... f5 {[%clk
0:00:29.4]} 31. Kd1 {[%clk 0:00:17.8]} 31... Rc8 {[%clk 0:00:27.6]} 32. Rc1
{[%clk 0:00:18.6]} 32... Rxc1+ {[%clk 0:00:27.4]} 33. Kxc1 {[%clk 0:00:19.6]}
33... g6 {[%clk 0:00:23.3]} 34. Kc2 {[%clk 0:00:17.7]} 34... Kf7 {[%clk
0:00:23.7]} 35. b3 {[%clk 0:00:17.9]} 35... f4 {[%clk 0:00:23]} 36. Bf2 {[%clk
0:00:17]} 36... g5 {[%clk 0:00:23]} 37. bxa4 {[%clk 0:00:16.6]} 37... bxa4
{[%clk 0:00:23.2]} 38. Nc4 {[%clk 0:00:15.7]} 38... Bd8 {[%clk 0:00:19.2]} 39.
Bb6 {[%clk 0:00:13.6]} 39... Ke7 {[%clk 0:00:19.3]} 40. Ndb2 {[%clk 0:00:11.3]}
40... Nc7 {[%clk 0:00:13]} 41. Bxc7 {[%clk 0:00:08.7]} 41... Bxc7 {[%clk
0:00:13.4]} 42. Kc3 {[%clk 0:00:09.5]} 42... h5 {[%clk 0:00:12.2]} 43. Kb4
{[%clk 0:00:06.2]} 43... g4 {[%clk 0:00:13.4]} 44. Nxa4 {[%clk 0:00:06.9]} 44...
g3 {[%clk 0:00:13]} 45. h4 {[%clk 0:00:05.9]} 45... Bh3 {[%clk 0:00:13.2]} 46.
gxh3 {[%clk 0:00:04.3]} 46... g2 {[%clk 0:00:13.6]} 0-1

[Event "*** Titled Tuesday 3|2 Blitz"]
[Site "Chess.com"]
[Date "2017.03.07"]
[Round "9"]
[White "ZEN-22"]
[Black "AlexanderL"]
[Result "1/2-1/2"]
[WhiteElo "2368"]
[BlackElo "2542"]
[TimeControl "180+2"]
[EndTime "15:09:47 PST"]
[Termination "Game drawn by agreement"]

1. e4 {[%clk 0:03:02]} 1... e6 {[%clk 0:02:49.3]} 2. d4 {[%clk 0:03:01.9]} 2...
d5 {[%clk 0:02:49.1]} 3. Nc3 {[%clk 0:03:03.4]} 3... dxe4 {[%clk 0:02:47.5]} 4.
Nxe4 {[%clk 0:03:03.8]} 4... Nd7 {[%clk 0:02:47.3]} 5. c4 {[%clk 0:03:04.6]}
5... Ngf6 {[%clk 0:02:47.9]} 6. Nc3 {[%clk 0:03:04.7]} 6... Be7 {[%clk
0:02:46.9]} 7. Nf3 {[%clk 0:03:05.3]} 7... O-O {[%clk 0:02:48]} 8. g3 {[%clk
0:03:02.5]} 8... c5 {[%clk 0:02:47.3]} 9. Bg2 {[%clk 0:03:00.4]} 9... cxd4
{[%clk 0:02:48.3]} 10. Nxd4 {[%clk 0:03:01.5]} 10... Nb6 {[%clk 0:02:42.6]} 11.
b3 {[%clk 0:03:02]} 11... e5 {[%clk 0:02:36.7]} 12. Nde2 {[%clk 0:02:47.3]}
12... a6 {[%clk 0:02:27.4]} 13. Be3 {[%clk 0:02:46.2]} 13... Qc7 {[%clk
0:02:28.4]} 14. O-O {[%clk 0:02:45.7]} 14... Be6 {[%clk 0:02:26.1]} 15. h3
{[%clk 0:02:46]} 15... Rfd8 {[%clk 0:02:23.8]} 16. Qc2 {[%clk 0:02:47.3]} 16...
Rac8 {[%clk 0:02:22.2]} 17. Rad1 {[%clk 0:02:47.8]} 17... Nbd7 {[%clk
0:02:20.5]} 18. a4 {[%clk 0:02:41.4]} 18... Bc5 {[%clk 0:02:20.1]} 19. Kh2
{[%clk 0:02:36.2]} 19... Bxe3 {[%clk 0:02:17.8]} 20. fxe3 {[%clk 0:02:37.6]}
20... Qb6 {[%clk 0:02:18.9]} 21. a5 {[%clk 0:02:35]} 21... Qxa5 {[%clk
0:02:06.9]} 22. Bxb7 {[%clk 0:02:35]} 22... Rb8 {[%clk 0:02:08.1]} 23. Bg2
{[%clk 0:02:34.6]} 23... Qb6 {[%clk 0:02:03.9]} 24. Nc1 {[%clk 0:02:28.3]} 24...
Qxe3 {[%clk 0:02:02.7]} 25. Rfe1 {[%clk 0:02:24.9]} 25... Qb6 {[%clk 0:02:00.5]}
26. Qa2 {[%clk 0:02:19.7]} 26... h6 {[%clk 0:01:50.4]} 27. Rd2 {[%clk
0:02:11.2]} 27... Nc5 {[%clk 0:01:35.7]} 28. Rxd8+ {[%clk 0:02:11.2]} 28... Rxd8
{[%clk 0:01:37.6]} 29. Rxe5 {[%clk 0:02:10.1]} 29... Nd3 {[%clk 0:01:38.8]} 30.
Nxd3 {[%clk 0:02:06.9]} 30... Rxd3 {[%clk 0:01:39.9]} 31. Qc2 {[%clk 0:02:07.9]}
31... Qd6 {[%clk 0:01:27.8]} 32. Ne2 {[%clk 0:01:50.2]} 32... Rxg3 {[%clk
0:01:16.4]} 33. Rxe6 {[%clk 0:01:39.3]} 33... Rxg2+ {[%clk 0:01:17.2]} 34. Kxg2
{[%clk 0:01:40.4]} 34... Qxe6 {[%clk 0:01:19.1]} 35. c5 {[%clk 0:01:41.3]} 35...
Nd5 {[%clk 0:01:18.2]} 36. Kf2 {[%clk 0:01:22.8]} 36... Qe3+ {[%clk 0:01:15]}
37. Kf1 {[%clk 0:01:23.6]} 37... Qxh3+ {[%clk 0:01:12.9]} 38. Ke1 {[%clk
0:01:24.2]} 38... Qh4+ {[%clk 0:01:08.1]} 39. Kd2 {[%clk 0:01:22.4]} 39... Qb4+
{[%clk 0:00:59.2]} 40. Kc1 {[%clk 0:01:23.3]} 40... Qa3+ {[%clk 0:00:54.5]} 41.
Kb1 {[%clk 0:01:18.9]} 41... Nb4 {[%clk 0:00:50.4]} 42. Qc3 {[%clk 0:01:19.4]}
42... Qa2+ {[%clk 0:00:51]} 43. Kc1 {[%clk 0:01:19.8]} 43... Qxe2 {[%clk
0:00:34]} 44. Qxb4 {[%clk 0:01:20.3]} 44... h5 {[%clk 0:00:24.5]} 45. Qb8+
{[%clk 0:01:10.1]} 45... Kh7 {[%clk 0:00:24.4]} 46. Qf4 {[%clk 0:00:51.2]} 46...
f6 {[%clk 0:00:19.9]} 47. Qf5+ {[%clk 0:00:50]} 47... Kh6 {[%clk 0:00:20.6]} 48.
Qf4+ {[%clk 0:00:47.7]} 48... Kg6 {[%clk 0:00:21.4]} 49. Qg3+ {[%clk 0:00:48.2]}
49... Kf7 {[%clk 0:00:21]} 50. Qc7+ {[%clk 0:00:49.2]} 50... Qe7 {[%clk
0:00:22]} 51. Qb6 {[%clk 0:00:45.3]} 51... Qe6 {[%clk 0:00:22.1]} 52. c6 {[%clk
0:00:46.5]} 52... h4 {[%clk 0:00:11.4]} 53. Qb7+ {[%clk 0:00:46.2]} 53... Kg6
{[%clk 0:00:12.7]} 54. c7 {[%clk 0:00:47.8]} 54... Qe1+ {[%clk 0:00:13.7]} 55.
Kb2 {[%clk 0:00:48.7]} 55... Qd2+ {[%clk 0:00:13.8]} 56. Kb1 {[%clk 0:00:49.9]}
56... Qd1+ {[%clk 0:00:15.1]} 57. Ka2 {[%clk 0:00:50.5]} 57... Qd2+ {[%clk
0:00:16.4]} 58. Ka1 {[%clk 0:00:52.1]} 58... Qd1+ {[%clk 0:00:17.6]} 59. Kb2
{[%clk 0:00:53.2]} 59... Qd2+ {[%clk 0:00:19]} 60. Kb1 {[%clk 0:00:55]} 60...
Qd1+ {[%clk 0:00:20.3]} 61. Kb2 {[%clk 0:00:56.3]} 61... Qd2+ {[%clk 0:00:21.6]}
62. Ka3 {[%clk 0:00:57.4]} 62... Qa5+ {[%clk 0:00:21.5]} 1/2-1/2

[Event "*** Titled Tuesday 3|2 Blitz"]
[Site "Chess.com"]
[Date "2017.03.07"]
[Round "9"]
[White "peteseeger"]
[Black "politeplayer"]
[Result "1/2-1/2"]
[WhiteElo "2104"]
[BlackElo "2037"]
[TimeControl "180+2"]
[EndTime "15:09:53 PST"]
[Termination "Game drawn - insufficient material"]

1. e4 {[%clk 0:03:02]} 1... c5 {[%clk 0:02:59]} 2. Nf3 {[%clk 0:03:02.6]} 2...
Nc6 {[%clk 0:02:57.9]} 3. Bb5 {[%clk 0:03:02.2]} 3... d6 {[%clk 0:02:56.8]} 4.
d4 {[%clk 0:03:02]} 4... cxd4 {[%clk 0:02:53.8]} 5. Qxd4 {[%clk 0:03:02.8]} 5...
Bd7 {[%clk 0:02:53.9]} 6. Bxc6 {[%clk 0:03:04.3]} 6... Bxc6 {[%clk 0:02:54.8]}
7. Nc3 {[%clk 0:03:05.7]} 7... Nf6 {[%clk 0:02:54.8]} 8. Bg5 {[%clk 0:03:06.9]}
8... e6 {[%clk 0:02:53.4]} 9. Qd3 {[%clk 0:03:08.3]} 9... Be7 {[%clk 0:02:50.1]}
10. Nd4 {[%clk 0:03:08.5]} 10... Rc8 {[%clk 0:02:40.5]} 11. f4 {[%clk 0:03:08]}
11... O-O {[%clk 0:02:37.8]} 12. O-O-O {[%clk 0:03:07.1]} 12... Qa5 {[%clk
0:02:21.5]} 13. Kb1 {[%clk 0:03:06.8]} 13... Rfd8 {[%clk 0:02:19.4]} 14. f5
{[%clk 0:03:07.1]} 14... e5 {[%clk 0:02:02.3]} 15. Bxf6 {[%clk 0:03:07.1]} 15...
Bxf6 {[%clk 0:01:58.2]} 16. Nde2 {[%clk 0:02:46.9]} 16... b5 {[%clk 0:01:43.8]}
17. g4 {[%clk 0:02:25.9]} 17... b4 {[%clk 0:01:39.6]} 18. Nd5 {[%clk 0:02:25.8]}
18... Bxd5 {[%clk 0:01:37.3]} 19. Qxd5 {[%clk 0:02:26.5]} 19... Rc5 {[%clk
0:01:23.4]} 20. Qd3 {[%clk 0:02:20.8]} 20... Rdc8 {[%clk 0:01:19.2]} 21. Nc1
{[%clk 0:01:58.9]} 21... Qc7 {[%clk 0:01:07.6]} 22. Qxd6 {[%clk 0:01:44.5]}
22... Rxc2 {[%clk 0:01:00.2]} 23. Qxc7 {[%clk 0:01:40.7]} 23... R8xc7 {[%clk
0:00:51.5]} 24. Nd3 {[%clk 0:01:35]} 24... a5 {[%clk 0:00:43.6]} 25. Rc1 {[%clk
0:01:28]} 25... Rxc1+ {[%clk 0:00:40.3]} 26. Rxc1 {[%clk 0:01:28.4]} 26... Rxc1+
{[%clk 0:00:40]} 27. Kxc1 {[%clk 0:01:29.3]} 27... h5 {[%clk 0:00:37.6]} 28.
gxh5 {[%clk 0:01:25.2]} 28... Kh7 {[%clk 0:00:37]} 29. Kc2 {[%clk 0:01:19.6]}
29... Kh6 {[%clk 0:00:33.9]} 30. Kb3 {[%clk 0:01:15.7]} 30... Kxh5 {[%clk
0:00:34.4]} 31. Ka4 {[%clk 0:01:16.5]} 31... Kg4 {[%clk 0:00:26.2]} 32. Kxa5
{[%clk 0:01:16.9]} 32... Kf3 {[%clk 0:00:25.7]} 33. Nc5 {[%clk 0:01:12.4]} 33...
Be7 {[%clk 0:00:19.4]} 34. Kxb4 {[%clk 0:01:12.6]} 34... Bxc5+ {[%clk
0:00:15.8]} 35. Kxc5 {[%clk 0:01:13.3]} 35... Kxe4 {[%clk 0:00:15]} 36. a4
{[%clk 0:01:14.7]} 36... Kd3 {[%clk 0:00:15.5]} 37. a5 {[%clk 0:01:15.5]} 37...
e4 {[%clk 0:00:16.5]} 38. a6 {[%clk 0:01:16.4]} 38... e3 {[%clk 0:00:17.9]} 39.
a7 {[%clk 0:01:17.9]} 39... e2 {[%clk 0:00:19.8]} 40. a8=Q {[%clk 0:01:18.4]}
40... e1=Q {[%clk 0:00:19.1]} 41. Qd8+ {[%clk 0:00:48.2]} 41... Kc2 {[%clk
0:00:18]} 42. Qd4 {[%clk 0:00:48.3]} 42... Qa5+ {[%clk 0:00:15.6]} 43. Kd6
{[%clk 0:00:47.9]} 43... Qxf5 {[%clk 0:00:12.2]} 44. Qxg7 {[%clk 0:00:48.4]}
44... Qe6+ {[%clk 0:00:11.1]} 45. Kc5 {[%clk 0:00:48.8]} 45... Qe7+ {[%clk
0:00:09.7]} 46. Kb5 {[%clk 0:00:42.8]} 46... Qb7+ {[%clk 0:00:09.3]} 47. Kc5
{[%clk 0:00:43.4]} 47... Qc7+ {[%clk 0:00:09.7]} 48. Kd5 {[%clk 0:00:43.2]}
48... Qxh2 {[%clk 0:00:09]} 49. Qxf7 {[%clk 0:00:34.8]} 49... Qg2+ {[%clk
0:00:07.7]} 50. Ke6 {[%clk 0:00:34.3]} 50... Kxb2 {[%clk 0:00:07.5]} 51. Qf6+
{[%clk 0:00:32.9]} 51... Kc2 {[%clk 0:00:07.9]} 52. Qf5+ {[%clk 0:00:33.1]}
52... Kb2 {[%clk 0:00:08.2]} 53. Qf6+ {[%clk 0:00:33.4]} 53... Kb1 {[%clk
0:00:08.8]} 54. Qf5+ {[%clk 0:00:34.2]} 54... Qc2 {[%clk 0:00:07.6]} 55. Qxc2+
{[%clk 0:00:33.9]} 55... Kxc2 {[%clk 0:00:07.1]} 1/2-1/2